fUSD/lending_fUSD_20250616
["ID","MTS","AMOUNT","RATE_DAILY","PERIOD"]
[366199214,1750113058227,-490.0,0.000169,2]
[366199215,1750113058237,-490.0,0.000169,2]
[366199216,1750113058247,-490.0,0.000169,2]
[366199217,1750113058263,-530.67,0.000169,2]
[366199218,1750113058273,-490.0,0.000169,2]
[366199219,1750113058283,-490.0,0.000169,2]
[366199220,1750113058293,-490.0,0.000169,2]
[366199221,1750113058303,-490.0,0.000169,2]
[366199222,1750113058313,-672.07,0.000169,2]
[366199223,1750113058323,-490.0,0.000169,2]
[366199224,1750113058333,-490.0,0.000169,2]
[366199225,1750113058343,-151.0,0.000169,2]
[366199226,1750113058353,-490.0,0.000169,2]
[366199227,1750113058362,-490.0,0.000169,2]
[366199228,1750113058373,-490.0,0.000169,2]
[366199229,1750113058383,-151.0,0.000169,2]
[366199230,1750113058393,-490.0,0.000169,2]
[366199231,1750113058404,-151.0,0.000169,2]
[366199232,1750113058414,-490.0,0.000169,2]
[366199233,1750113058426,-151.0,0.000169,2]
[366199234,1750113058435,-490.0,0.000169,2]
[366199235,1750113058446,-490.0,0.000169,2]
[366199236,1750113058455,-490.0,0.000169,2]
[366199237,1750113058465,-559.25,0.000169,2]
[366199238,1750113058474,-151.0,0.000169,2]
[366199239,1750113058484,-490.0,0.000169,2]
[366199240,1750113058494,-490.0,0.000169,2]
[366199241,1750113058503,-490.0,0.000169,2]
[366199242,1750113058514,-490.0,0.000169,2]
[366199243,1750113058524,-151.0,0.000169,2]
[366199244,1750113058534,-1546.66915506,0.000169,2]
[366199245,1750113058544,-168.68660716,0.000169,2]
[366199246,1750113058554,-151.0,0.000169,2]
[366199247,1750113058565,-151.0,0.000169,2]
[366199248,1750113058575,-1179.773068,0.000169,2]
[366199249,1750113058585,-1179.773068,0.000169,2]
[366199250,1750113058595,-5081.8925005,0.000169,2]
[366199251,1750113058604,-151.0,0.000169,2]
[366199252,1750113058614,-151.0,0.000169,2]
[366199253,1750113058624,-151.0,0.000169,2]
[366199254,1750113058635,-215.370534,0.000169,2]
[366199255,1750113058645,-151.0,0.000169,2]
[366199256,1750113058655,-215.370534,0.000169,2]
[366199257,1750113058666,-151.0,0.000169,2]
[366199258,1750113058677,-162.8953335,0.000169,2]
[366199259,1750113058687,-151.0,0.000169,2]
[366199260,1750113058696,-156.11569964,0.000169,2]
[366199261,1750113058707,-179.38385656,0.000169,2]
[366199262,1750113058717,-151.0,0.000169,2]
[366199263,1750113058727,-151.0,0.000169,2]
[366199264,1750113058738,-1054.05340248,0.000169,2]
[366199265,1750113058748,-976.00066921,0.000169,2]
[366199266,1750113058758,-490.0,0.00016905,2]
[366199267,1750113058768,-5614.23,0.00016905,2]
[366199268,1750113058779,-561.83,0.00016905,2]
[366199269,1750113058788,-490.0,0.00016905,2]
[366199270,1750113058798,-490.0,0.00016905,2]
[366199271,1750113058808,-987.33,0.00016905,2]
[366199272,1750113058819,-1707.14,0.00016905,2]
[366199273,1750113058829,-2221.41,0.00016905,2]
[366199274,1750113058839,-490.0,0.00016905,2]
[366199275,1750113058849,-490.0,0.00016905,2]
[366199276,1750113058858,-2088.67,0.00016905,2]
[366199277,1750113058868,-1000.0,0.00016905,2]
[366199278,1750113058878,-490.0,0.00016905,2]
[366199279,1750113058889,-490.0,0.00016905,2]
[366199280,1750113058900,-513.93765341,0.00016905,2]
[366199281,1750113058911,-490.0,0.00016905,2]
[366199282,1750113058921,-490.0,0.00016905,2]
[366199283,1750113058931,-5034.41,0.00016905,2]
[366199284,1750113058941,-861.01,0.00016905,2]
[366199285,1750113058951,-1230.04,0.00016905,2]
[366199286,1750113058961,-187.97232939,0.00016905,2]
[366199287,1750113058970,-602.5,0.00016905,2]
[366199288,1750113058980,-490.0,0.00016905,2]
[366199289,1750113058990,-490.35,0.00016905,2]
[366199290,1750113058999,-1717.26,0.00016905,2]
[366199291,1750113059010,-490.0,0.00016905,2]
[366199292,1750113059020,-490.0,0.00016905,2]
[366199293,1750113059030,-1928.32,0.00016905,2]
[366199294,1750113059040,-772.18,0.00016905,2]
[366199295,1750113059050,-490.0,0.00016905,2]
[366199296,1750113059060,-490.0,0.00016905,2]
[366199297,1750113059070,-490.0,0.00016905,2]
[366199298,1750113059080,-490.0,0.00016905,2]
[366199299,1750113059091,-490.0,0.00016905,2]
[366199300,1750113059101,-490.0,0.00016905,2]
[366199301,1750113059110,-490.0,0.00016905,2]
[366199302,1750113059121,-490.0,0.00016905,2]
[366199303,1750113059130,-5449.9,0.00016905,2]
[366199304,1750113059140,-490.0,0.00016905,2]
[366199305,1750113059150,-1249.31,0.00016905,2]
[366199306,1750113059159,-490.0,0.00016905,2]
[366199307,1750113059170,-490.0,0.00016905,2]
[366199308,1750113059180,-972.46,0.00016905,2]
[366199309,1750113059189,-490.0,0.00016905,2]
[366199310,1750113059199,-490.0,0.00016905,2]
[366199311,1750113059210,-490.0,0.00016905,2]
[366199312,1750113059220,-490.0,0.00016905,2]
[366199313,1750113059230,-1603.5,0.00016905,2]
[366199314,1750113059240,-541.83,0.00016906,2]
[366199315,1750113059254,-639.39,0.00016906,2]
[366199316,1750113059264,-490.0,0.00016906,2]
[366199317,1750113059275,-587.35,0.00016906,2]
[366199318,1750113059286,-490.0,0.00016906,2]
[366199319,1750113059297,-861.69,0.00016906,2]
[366199320,1750113059307,-151.0,0.00016907,2]
[366199321,1750113059318,-151.0,0.00016907,2]
[366199322,1750113059328,-330.0,0.0001692,2]
[366199323,1750113059338,-318.44635214,0.00016921,2]
[366199324,1750113059355,-490.0,0.00016921,2]
[366199325,1750113059367,-490.0,0.00016921,2]
[366199326,1750113059379,-490.0,0.00016921,2]
[366199327,1750113059389,-300.0,0.00016921,2]
[366199328,1750113059401,-490.0,0.00016921,2]
[366199329,1750113059414,-490.0,0.00016921,2]
[366199330,1750113059425,-490.0,0.00016921,2]
[366199331,1750113059436,-476.63,0.00016926,2]
[366199332,1750113059448,-1000.0,0.00016938,2]
[366199333,1750113059460,-255.0,0.0001697,2]
[366199334,1750113059470,-500.0,0.00016973,2]
[366199335,1750113059481,-500.0,0.00016973,2]
[366199336,1750113059491,-500.0,0.00016973,2]
[366199337,1750113059501,-500.0,0.00016973,2]
[366199338,1750113059511,-587.12239917,0.00016973,2]
[366199339,1750113059522,-500.0,0.00016973,2]
[366199340,1750113059532,-574.50686008,0.00016973,2]
[366199341,1750113059542,-500.0,0.00016973,2]
[366199342,1750113059553,-500.0,0.00016973,2]
[366199343,1750113059563,-500.0,0.00016973,2]
[366199344,1750113059573,-240.2,0.00016986,2]
[366199345,1750113059583,-151.0,0.00016986,2]
[366199346,1750113059593,-300.0,0.00016987,2]
[366199347,1750113059604,-150.0,0.00016988,2]
[366199348,1750113059615,-2674.64875146,0.00016988,2]
[366199349,1750113059626,-150.0,0.00016988,2]
[366199350,1750113059636,-574.09827431,0.00016988,2]
[366199351,1750113059647,-150.0,0.00016988,2]
[366199352,1750113059658,-6167.87186235,0.00016988,2]
[366199353,1750113059668,-150.0,0.00016988,2]
[366199354,1750113059678,-71646.85950428,0.00016988,2]
[366199355,1750113059688,-150.0,0.00016988,2]
[366199356,1750113059699,-1086.1249322,0.00016988,2]
[366199357,1750113059709,-151.0,0.00016997,2]
[366199358,1750113059720,-300.0,0.00016998,2]
[366199359,1750113059731,-300.0,0.00016998,2]
[366199360,1750113059742,-300.0,0.00016998,2]
[366199361,1750113059752,-300.0,0.00016998,2]
[366199362,1750113059762,-300.0,0.00016999,2]
[366199363,1750113059772,-300.0,0.00016999,2]
[366199364,1750113059788,-300.0,0.00016999,2]
[366199365,1750113059799,-300.0,0.00016999,2]
[366199366,1750113059809,-318.73970957,0.00016999,2]
[366199367,1750113059819,-732.49530941,0.00016999,2]
[366199368,1750113059830,-10533.15783727,0.00016999,2]
[366199369,1750113059841,-151.0,0.00016999,2]
[366199370,1750113059851,-151.0,0.00016999,2]
[366199371,1750113059862,-300.0,0.00016999,2]
[366199372,1750113059873,-151.0,0.00016999,2]
[366199373,1750113059883,-151.0,0.00016999,2]
[366199374,1750113059893,-178.609789,0.00016999,2]
[366199375,1750113059904,-165.192215,0.00016999,2]
[366199376,1750113059915,-300.0,0.00016999,2]
[366199377,1750113059926,-165.192215,0.00016999,2]
[366199378,1750113059937,-151.0,0.00016999,2]
[366199379,1750113059947,-151.0,0.00016999,2]
[366199380,1750113059958,-151.0,0.00016999,2]
[366199381,1750113059968,-151.0,0.00016999,2]
[366199382,1750113059979,-278.061212,0.00016999,2]
[366199383,1750113059990,-252.23219638,0.00016999,2]
[366199384,1750113060000,-151.0,0.00016999,2]
[366199385,1750113060010,-153.187357,0.00016999,2]
[366199386,1750113060021,-254.116624,0.00016999,2]
[366199387,1750113060031,-300.0,0.00016999,2]
[366199388,1750113060042,-151.0,0.00016999,2]
[366199389,1750113060052,-300.0,0.00016999,2]
[366199390,1750113060062,-151.0,0.00016999,2]
[366199391,1750113060072,-151.0,0.00016999,2]
[366199392,1750113060082,-151.0,0.00016999,2]
[366199393,1750113060092,-227.45747053,0.00016999,2]
[366199394,1750113060103,-151.0,0.00016999,2]
[366199395,1750113060113,-300.0,0.00016999,2]
[366199396,1750113060123,-192.82678757,0.00016999,2]
[366199397,1750113060134,-500.0,0.00016999,2]
[366199398,1750113060143,-181.11379754,0.00016999,2]
[366199399,1750113060153,-395.12129234,0.00016999,2]
[366199400,1750113060163,-449.97687691,0.00016999,2]
[366199401,1750113060173,-500.0,0.00016999,2]
[366199402,1750113060184,-500.0,0.00016999,2]
[366199403,1750113060194,-500.0,0.00016999,2]
[366199404,1750113060413,-500.0,0.00016999,2]
[366199405,1750113060423,-500.0,0.00016999,2]
[366199406,1750113060438,-500.0,0.00016999,2]
[366199407,1750113060448,-500.0,0.00016999,2]
[366199408,1750113060459,-210.17640059,0.00016999,2]
[366199409,1750113060469,-500.0,0.00016999,2]
[366199410,1750113060480,-500.0,0.00016999,2]
[366199411,1750113060490,-500.0,0.00016999,2]
[366199412,1750113060500,-500.0,0.00016999,2]
[366199413,1750113060511,-250.0,0.00016999,2]
[366199414,1750113060521,-937778.87134919,0.00016999,2]
[366199415,1750113060532,-13732.34928423,0.00016999,2]
[366199416,1750113060543,-377795.3234752,0.00017,2]
[366199417,1750113060552,-349.7,0.00017,2]
[366199418,1750113060564,-4361728.33196319,0.00017,2]
[366199419,1750113060574,-794079.52928142,0.00017,2]
[366199420,1750113061042,-19149.94697625,0.00017,2]
[366199421,1750113061055,-269.810001,0.00017,2]
[366199422,1750113061420,-2130.19,0.00016242,2]
[366199423,1750113061430,-923.75,0.00016406,2]
[366199424,1750113061440,-2130.19,0.00016406,2]
[366199425,1750113061451,-4090.0,0.00016514,2]
[366199426,1750113061461,-1743.6606506,0.0001657,2]
[366199427,1750113061473,-386.5293494,0.0001657,2]
[366199428,1750113061483,-263.24952624,0.0001657,2]
[366199429,1750113061494,-502.49912,0.0001657,2]
[366199430,1750113061519,-158.00135376,0.0001657,2]
[366199431,1750113061530,-151.0,0.00016735,2]
[366199432,1750113061540,-2130.19,0.00016735,2]
[366199433,1750113061551,-923.75,0.00016735,2]
[366199434,1750113061561,-151.0,0.00016899,2]
[366199435,1750113061575,-2130.19,0.00016899,2]
[366199436,1750113061586,-923.75,0.00016899,2]
[366199437,1750113061596,-151.0,0.00016999,2]
[366199438,1750113061607,-119237.60998584,0.00017,2]
[366199439,1750113061617,-105179.37839729,0.00017,2]
[366199440,1750113061629,-4908.15603795,0.00017,2]
[366199441,1750113062133,-161.41727078,0.00016306,2]
[366199442,1750113062143,-151.0,0.000165,2]
[366199443,1750113062154,-171.216156,0.000167,2]
[366199444,1750113062163,-2797.29954322,0.00017,2]
[366199445,1750113062181,-500.0,0.00017,2]
[366199446,1750113062279,-181795.62442271,0.00017,2]
[366199447,1750113062291,-1610.64595161,0.00017,2]
[366199448,1750113062320,-36738.95651912,0.00017,2]
[366199449,1750113062331,-149066.21895986,0.00017,2]
[366199450,1750113062343,-602.0,0.00017,2]
[366199451,1750113062355,-610.68180385,0.00017,2]
[366199452,1750113062367,-1108.77914718,0.00017,2]
[366199453,1750113062379,-479.83,0.00017,2]
[366199454,1750113062390,-514.73715875,0.00017,2]
[366199455,1750113062444,-687.33772041,0.00017,2]
[366199457,1750113159394,428.68,0.00013699,2]
[366199459,1750113172786,211.69,0.00024657,120]
[366199460,1750113212657,1100.30063002,0.000245,120]
[366199461,1750113224078,500.0,0.00015068,2]
[366199462,1750113254792,565.93,0.00015212,2]
[366199463,1750113283590,1000.0,0.00015197,2]
[366199464,1750113339260,666.0,0.00015178,2]
[366199467,1750113511458,250.0,0.00015076,2]
[366199468,1750113600140,331.84,0.00015028,2]
[366199471,1750113756785,1611.73,0.00015083,2]
[366199472,1750113976004,250.0,0.00015,2]
[366199473,1750113978577,6919.24,0.00015083,2]
[366199474,1750114023380,2453.77,0.00015062,2]
[366199476,1750114224163,285.97,0.00015055,2]
[366199478,1750114231829,-166.1,0.00015535,2]
[366199479,1750114231840,-600.0,0.00015631,4]
[366199480,1750114231851,-600.0,0.00015727,4]
[366199481,1750114231861,-300.0,0.00015919,2]
[366199482,1750114231871,-250.0,0.00015919,2]
[366199483,1750114231882,-300.0,0.00015938,2]
[366199484,1750114231893,-300.0,0.00015975,2]
[366199485,1750114231903,-300.0,0.00015976,2]
[366199486,1750114231914,-260.0,0.00015976,2]
[366199487,1750114231924,-14.34816829,0.00015976,2]
[366199488,1750114231936,-1185.65183171,0.00015976,2]
[366199489,1750114231949,-300.0,0.00015976,2]
[366199490,1750114231959,-13666.94816829,0.00015977,2]
[366199491,1750114231971,-1138.48394207,0.00015977,2]
[366199492,1750114231983,-438.21896973,0.00015977,2]
[366199493,1750114232000,-17118.64643431,0.00015977,2]
[366199494,1750114232012,-3696.6484856,0.00015977,2]
[366199495,1750114232022,-221.88833573,0.00015977,2]
[366199496,1750114232033,-383.69,0.00015978,2]
[366199497,1750114232159,-1935.4172,0.00015982,2]
[366199498,1750114232170,-156.55935755,0.00015982,2]
[366199499,1750114232180,-1957.856,0.00015989,2]
[366199500,1750114232189,-207.4,0.00015989,2]
[366199501,1750114232203,-13725.1581,0.00015999,2]
[366199502,1750114232213,-859.92,0.00016,2]
[366199503,1750114232223,-859.92,0.00016,2]
[366199504,1750114232232,-859.92,0.00016,2]
[366199505,1750114232242,-859.92,0.00016,2]
[366199506,1750114232252,-198.33540112,0.00016,2]
[366199507,1750114232272,-365.32464223,0.00016,2]
[366199508,1750114232283,-296.25995665,0.00016,2]
[366199509,1750114232294,-161.74102115,0.00016,4]
[366199510,1750114232305,-1338.90034923,0.00016,4]
[366199511,1750114232315,-201.296527,0.00016,2]
[366199512,1750114232325,-224.8892983,0.00016,2]
[366199513,1750114232340,-1651.73007522,0.00016,2]
[366199514,1750114232350,-156.55935743,0.00016039,2]
[366199515,1750114232359,-10355.48516002,0.0001604,2]
[366199516,1750114232377,-48162.47989201,0.0001604,2]
[366199517,1750114232386,-2030.296672,0.00016044,2]
[366199518,1750114232397,-513.69,0.00016072,2]
[366199519,1750114232407,-151.0,0.00016073,2]
[366199520,1750114232429,-212.08120143,0.00016073,2]
[366199521,1750114232439,-151.0,0.00016073,2]
[366199522,1750114232451,-151.0,0.00016073,2]
[366199523,1750114232461,-151.0,0.00016073,2]
[366199524,1750114232471,-151.0,0.00016073,2]
[366199525,1750114232481,-151.0,0.00016073,2]
[366199526,1750114232490,-265.49345065,0.00016073,2]
[366199527,1750114232500,-309.02892582,0.00016073,2]
[366199528,1750114232511,-330.90299297,0.00016073,2]
[366199529,1750114232521,-500.0,0.00016073,2]
[366199530,1750114232531,-500.0,0.00016073,2]
[366199531,1750114232541,-500.0,0.00016073,2]
[366199532,1750114232551,-500.0,0.00016073,2]
[366199533,1750114232561,-500.0,0.00016073,2]
[366199534,1750114232571,-500.0,0.00016073,2]
[366199535,1750114232581,-500.0,0.00016073,2]
[366199536,1750114232591,-500.0,0.00016073,2]
[366199537,1750114232601,-334.31012847,0.00016073,2]
[366199538,1750114232611,-500.0,0.00016073,2]
[366199539,1750114232621,-500.0,0.00016073,2]
[366199540,1750114232631,-500.0,0.00016073,2]
[366199541,1750114232640,-500.0,0.00016073,2]
[366199542,1750114232650,-388.06292643,0.00016073,2]
[366199543,1750114232660,-500.0,0.00016081,2]
[366199544,1750114232670,-511.10430697,0.00016081,2]
[366199545,1750114232679,-490.0,0.00016081,2]
[366199546,1750114232689,-490.0,0.00016081,2]
[366199547,1750114232705,-270.29081235,0.00016081,2]
[366199548,1750114232715,-158.55925989,0.00016081,2]
[366199549,1750114232725,-232.2120151,0.00016081,2]
[366199550,1750114232735,-174.52070332,0.00016081,2]
[366199551,1750114232744,-490.0,0.00016081,2]
[366199552,1750114232755,-490.0,0.00016081,2]
[366199553,1750114232764,-490.0,0.00016081,2]
[366199554,1750114232774,-490.0,0.00016081,2]
[366199555,1750114232783,-490.0,0.00016081,2]
[366199556,1750114232793,-490.0,0.00016081,2]
[366199557,1750114232803,-490.0,0.00016081,2]
[366199558,1750114232813,-490.0,0.00016081,2]
[366199559,1750114232823,-490.0,0.00016081,2]
[366199560,1750114232832,-490.0,0.00016081,2]
[366199561,1750114232841,-490.0,0.00016081,2]
[366199562,1750114232851,-490.0,0.00016081,2]
[366199563,1750114232866,-981.1,0.00016081,2]
[366199564,1750114232876,-444.66,0.00016081,2]
[366199565,1750114232886,-490.0,0.00016081,2]
[366199566,1750114232896,-490.0,0.00016081,2]
[366199567,1750114232906,-490.0,0.00016081,2]
[366199568,1750114232916,-686.76,0.00016081,2]
[366199569,1750114232926,-490.0,0.00016081,2]
[366199570,1750114232935,-1369.72,0.00016081,2]
[366199571,1750114232947,-490.0,0.00016081,2]
[366199572,1750114232958,-490.0,0.00016081,2]
[366199573,1750114232968,-633.51,0.00016081,2]
[366199574,1750114232978,-490.0,0.00016081,2]
[366199575,1750114232988,-490.0,0.00016081,2]
[366199576,1750114232998,-490.0,0.00016081,2]
[366199577,1750114233008,-490.0,0.00016081,2]
[366199578,1750114233018,-490.0,0.00016081,2]
[366199579,1750114233029,-490.0,0.00016081,2]
[366199580,1750114233039,-490.0,0.00016081,2]
[366199581,1750114233050,-490.0,0.00016081,2]
[366199582,1750114233060,-490.0,0.00016081,2]
[366199583,1750114233071,-490.0,0.00016081,2]
[366199584,1750114233081,-490.0,0.00016081,2]
[366199585,1750114233091,-490.0,0.00016081,2]
[366199586,1750114233102,-1538.06,0.00016081,2]
[366199587,1750114233112,-490.0,0.00016081,2]
[366199588,1750114233123,-490.0,0.00016081,2]
[366199589,1750114233133,-490.0,0.00016081,2]
[366199590,1750114233144,-490.0,0.00016081,2]
[366199591,1750114233155,-490.0,0.00016081,2]
[366199592,1750114233164,-490.0,0.00016081,2]
[366199593,1750114233175,-490.0,0.00016081,2]
[366199594,1750114233185,-490.0,0.00016081,2]
[366199595,1750114233195,-490.0,0.00016081,2]
[366199596,1750114233208,-490.0,0.00016081,2]
[366199597,1750114233219,-490.0,0.00016081,2]
[366199598,1750114233229,-490.0,0.00016081,2]
[366199599,1750114233239,-490.0,0.00016081,2]
[366199600,1750114233250,-1104.098674,0.00016081,2]
[366199601,1750114233260,-996.47,0.00016081,2]
[366199602,1750114233270,-490.0,0.00016081,2]
[366199603,1750114233280,-490.0,0.00016081,2]
[366199604,1750114233289,-490.0,0.00016081,2]
[366199605,1750114233299,-490.0,0.00016081,2]
[366199606,1750114233315,-1278.98,0.00016081,2]
[366199607,1750114233325,-490.0,0.00016081,2]
[366199608,1750114233338,-734.666887,0.00016081,2]
[366199609,1750114233349,-490.0,0.00016081,2]
[366199610,1750114233359,-490.0,0.00016081,2]
[366199611,1750114233370,-490.0,0.00016081,2]
[366199612,1750114233380,-490.0,0.00016082,2]
[366199613,1750114233390,-490.0,0.00016082,2]
[366199614,1750114233400,-490.0,0.00016082,2]
[366199615,1750114233411,-490.0,0.00016082,2]
[366199616,1750114233420,-490.0,0.00016082,2]
[366199617,1750114233430,-490.0,0.00016082,2]
[366199618,1750114233440,-490.0,0.00016082,2]
[366199619,1750114233452,-375.79,0.00016082,2]
[366199620,1750114233463,-490.0,0.00016082,2]
[366199621,1750114233473,-490.0,0.00016082,2]
[366199622,1750114233483,-490.0,0.00016082,2]
[366199623,1750114233493,-363.80776421,0.00016082,2]
[366199624,1750114233504,-490.0,0.00016082,2]
[366199625,1750114233514,-490.0,0.00016082,2]
[366199626,1750114233524,-490.0,0.00016082,2]
[366199627,1750114233535,-490.0,0.00016082,2]
[366199628,1750114233545,-490.0,0.00016082,2]
[366199629,1750114233556,-490.0,0.00016082,2]
[366199630,1750114233566,-490.0,0.00016082,2]
[366199631,1750114233576,-490.0,0.00016082,2]
[366199632,1750114233586,-490.0,0.00016082,2]
[366199633,1750114233596,-490.0,0.00016082,2]
[366199634,1750114233607,-490.0,0.00016082,2]
[366199635,1750114233617,-490.0,0.00016082,2]
[366199636,1750114233627,-490.0,0.00016082,2]
[366199637,1750114233637,-490.0,0.00016082,2]
[366199638,1750114233648,-490.0,0.00016082,2]
[366199639,1750114233658,-490.0,0.00016082,2]
[366199640,1750114233668,-490.0,0.00016082,2]
[366199641,1750114233679,-490.0,0.00016082,2]
[366199642,1750114233689,-490.0,0.00016082,2]
[366199643,1750114233703,-490.0,0.00016082,2]
[366199644,1750114233713,-490.0,0.00016082,2]
[366199645,1750114233723,-490.0,0.00016082,2]
[366199646,1750114233734,-490.0,0.00016082,2]
[366199647,1750114233744,-490.0,0.00016082,2]
[366199648,1750114233754,-490.0,0.00016082,2]
[366199649,1750114233765,-490.0,0.00016082,2]
[366199650,1750114233779,-490.0,0.00016082,2]
[366199651,1750114233790,-520.81,0.00016082,2]
[366199652,1750114233800,-490.0,0.00016082,2]
[366199653,1750114233811,-490.0,0.00016082,2]
[366199654,1750114233822,-490.0,0.00016082,2]
[366199655,1750114233833,-490.0,0.00016082,2]
[366199656,1750114233843,-490.0,0.00016082,2]
[366199657,1750114233854,-490.0,0.00016082,2]
[366199658,1750114233865,-490.0,0.00016082,2]
[366199659,1750114233875,-490.0,0.00016082,2]
[366199660,1750114233886,-490.0,0.00016082,2]
[366199661,1750114233897,-490.0,0.00016082,2]
[366199662,1750114233907,-490.0,0.00016082,2]
[366199663,1750114233917,-490.0,0.00016082,2]
[366199664,1750114233927,-490.0,0.00016082,2]
[366199665,1750114233937,-490.0,0.00016082,2]
[366199666,1750114233949,-490.0,0.00016082,2]
[366199667,1750114233959,-490.0,0.00016082,2]
[366199668,1750114233970,-490.0,0.00016082,2]
[366199669,1750114233980,-490.0,0.00016082,2]
[366199670,1750114233991,-490.0,0.00016082,2]
[366199671,1750114234001,-490.0,0.00016082,2]
[366199672,1750114234011,-490.0,0.00016082,2]
[366199673,1750114234022,-490.0,0.00016082,2]
[366199674,1750114234032,-517.07,0.00016082,2]
[366199675,1750114234042,-490.0,0.00016082,2]
[366199676,1750114234053,-1010.78,0.00016082,2]
[366199677,1750114234063,-490.0,0.00016082,2]
[366199678,1750114234073,-490.0,0.00016082,2]
[366199679,1750114234083,-490.0,0.00016082,2]
[366199680,1750114234093,-490.0,0.00016082,2]
[366199681,1750114234104,-490.0,0.00016082,2]
[366199682,1750114234115,-490.0,0.00016082,2]
[366199683,1750114234125,-490.0,0.00016082,2]
[366199684,1750114234136,-1687.37,0.00016082,2]
[366199685,1750114234147,-4478.01,0.00016082,2]
[366199686,1750114234156,-490.0,0.00016082,2]
[366199687,1750114234166,-490.0,0.00016082,2]
[366199688,1750114234176,-659.58,0.00016082,2]
[366199689,1750114234186,-490.0,0.00016082,2]
[366199690,1750114234199,-490.0,0.00016082,2]
[366199691,1750114234210,-490.0,0.00016082,2]
[366199692,1750114234221,-1699.08,0.00016082,2]
[366199693,1750114234231,-692.68,0.00016082,2]
[366199694,1750114234241,-490.0,0.00016082,2]
[366199695,1750114234252,-745.97,0.00016082,2]
[366199696,1750114234263,-490.0,0.00016082,2]
[366199697,1750114234274,-645.37,0.00016082,2]
[366199698,1750114234285,-490.0,0.00016082,2]
[366199699,1750114234295,-490.0,0.00016082,2]
[366199700,1750114234306,-490.0,0.00016082,2]
[366199701,1750114234316,-1307.87,0.00016082,2]
[366199702,1750114234326,-490.0,0.00016082,2]
[366199703,1750114234336,-490.0,0.00016082,2]
[366199704,1750114234349,-490.0,0.00016082,2]
[366199705,1750114234360,-490.0,0.00016082,2]
[366199706,1750114234370,-490.0,0.00016082,2]
[366199707,1750114234380,-490.0,0.00016082,2]
[366199708,1750114234390,-490.0,0.00016082,2]
[366199709,1750114234400,-490.0,0.00016082,2]
[366199710,1750114234410,-545.55,0.00016082,2]
[366199711,1750114234419,-490.0,0.00016082,2]
[366199712,1750114234429,-787.51,0.00016082,2]
[366199713,1750114234438,-490.0,0.00016082,2]
[366199714,1750114234451,-1361.65,0.00016082,2]
[366199715,1750114234460,-490.0,0.00016082,2]
[366199716,1750114234470,-490.0,0.00016082,2]
[366199717,1750114234480,-662.96,0.00016082,2]
[366199718,1750114234490,-589.78,0.00016082,2]
[366199719,1750114234500,-490.0,0.00016082,2]
[366199720,1750114234510,-490.0,0.00016082,2]
[366199721,1750114234520,-490.0,0.00016082,2]